bitfinex-derivatives/quotes_ETHF0:USTF0_20241020
["timestamp","ask_amount","ask_price","bid_price","bid_amount"]
[1729383218604,0.37682,2653.9,2653.7,0.8371]
[1729383219003,0.37683,2653.8,2653.7,0.8371]
[1729383219207,0.37683,2653.8,2653.7,0.4262]
[1729383219608,3.2078,2654.0,2653.7,0.4262]
[1729383219812,0.37683,2653.9,2653.7,0.4262]
[1729383221721,3.2078,2654.0,2653.7,0.4262]
[1729383222013,0.3768,2654.1,2653.7,0.80304]
[1729383222408,0.37679,2654.1,2653.7,0.4262]
[1729383223019,1.15479,2654.1,2653.7,0.80304]
[1729383223614,0.778,2654.1,2653.8,0.37682]
[1729383225917,1.15479,2654.1,2653.8,0.37682]
[1729383226106,1.15479,2654.1,2653.8,1.85744206]
[1729383226305,0.37682,2653.9,2653.8,1.48062206]
[1729383226514,0.37682,2653.9,2653.7,1.90682206]
[1729383226714,0.37682,2653.9,2653.7,0.4262]
[1729383228218,0.79332,2653.9,2653.7,0.4262]
[1729383229117,0.37683,2653.8,2653.7,0.4262]
[1729383229323,0.37683,2653.8,2653.7,1.83480836]
[1729383229519,0.79332,2653.9,2653.7,1.83480836]
[1729383229819,0.79332,2653.9,2653.7,1.90682206]
[1729383230015,0.79332,2653.9,2653.7,0.4262]
[1729383230412,0.79332,2653.9,2653.7,1.90682206]
[1729383231028,0.79332,2653.9,2653.7,0.4262]
[1729383231235,0.79332,2653.9,2653.7,1.90682206]
[1729383231917,0.4165,2653.9,2653.7,1.90682206]
[1729383232118,0.79332,2653.9,2653.7,1.90682206]
[1729383232921,0.4165,2653.9,2653.7,1.90682206]
[1729383233522,0.79332,2653.9,2653.7,1.90682206]
[1729383234424,0.79332,2653.9,2653.8,1.40945713]
[1729383234724,0.79333,2653.9,2653.6,1.48062206]
[1729383234924,0.79333,2653.9,2653.7,1.80407936]
[1729383235123,0.37683,2653.8,2653.7,0.3946]
[1729383235525,0.79333,2653.9,2653.7,1.80423484]
[1729383235724,0.37683,2653.8,2653.7,0.3946]
[1729383238231,0.4165,2653.9,2653.6,1.48062206]
[1729383238428,0.37685,2653.7,2653.6,1.48062206]
[1729383238729,0.37685,2653.7,2653.6,2.89082989]
[1729383240424,0.37685,2653.7,2653.6,1.41020783]
[1729383240622,0.4165,2653.9,2653.6,1.41020783]
[1729383240623,0.37685,2653.8,2653.6,1.41020783]
[1729383240828,0.37685,2653.7,2653.6,1.48053219]
[1729383241030,0.37685,2653.7,2653.6,1.4105992]
[1729383241229,0.37685,2653.7,2653.6,2.89112692]
[1729383241532,0.37685,2653.7,2653.6,1.4105992]
[1729383241735,0.37685,2653.7,2653.6,2.8913301]
[1729383242734,0.37685,2653.7,2653.6,1.4105992]
[1729383242937,0.37685,2653.7,2653.6,2.89153559]
[1729383243333,0.37685,2653.7,2653.6,1.4105992]
[1729383244931,0.4165,2653.9,2653.5,2.78244784]
[1729383245131,0.4165,2653.9,2653.7,1.48131427]
[1729383245132,0.37684,2653.8,2653.7,1.48131427]
[1729383245427,0.37684,2653.8,2653.7,3.28815863]
[1729383245631,0.37684,2653.8,2653.7,3.2881046]
[1729383245938,0.79332,2653.9,2653.7,3.2881046]
[1729383246132,3.2078,2654.0,2653.8,2.8926046]
[1729383246437,1.1528,2654.1,2653.9,3.2977046]
[1729383246635,1.1528,2654.1,2654.0,0.4201]
[1729383249124,0.37678,2654.2,2654.0,0.4201]
[1729383249330,0.37679,2654.1,2654.0,0.4201]
[1729383249534,0.37679,2654.1,2654.0,3.31262579]
[1729383249934,0.37679,2654.1,2654.0,3.31263006]
[1729383250845,0.37679,2654.1,2654.0,1.83136982]
[1729383251141,0.37679,2654.1,2654.0,3.31263006]
[1729383254733,0.37679,2654.1,2654.0,1.90136024]
[1729383254939,1.15278,2654.2,2654.0,3.31297501]
[1729383255239,1.15278,2654.2,2654.1,2.89287501]
[1729383255440,2.39927,2654.3,2654.1,2.89287501]
[1729383255647,2.39927,2654.3,2654.2,1.41191252]
[1729383255843,2.39927,2654.3,2654.2,2.89317276]
[1729383256052,3.2078,2654.4,2654.2,2.89317276]
[1729383256343,3.2078,2654.4,2654.3,1.82991252]
[1729383256344,3.58455,2654.4,2654.3,1.82991252]
[1729383256537,3.58455,2654.4,2654.3,3.80716036]
[1729383256942,3.2078,2654.4,2654.3,3.80716036]
[1729383257338,1.15274,2654.5,2654.3,3.80716036]
[1729383257539,1.15274,2654.5,2654.4,2.89365877]
[1729383257732,4.36054,2654.5,2654.4,3.28335877]
[1729383257938,4.36054,2654.5,2654.4,3.28330237]
[1729383258640,3.2078,2654.5,2654.4,3.28330237]
[1729383258840,3.2078,2654.5,2654.4,1.80156257]
[1729383258841,3.58453,2654.5,2654.4,1.80156257]
[1729383259450,3.2078,2654.5,2654.4,3.28310438]
[1729383259743,3.58453,2654.5,2654.4,3.28290932]
[1729383260446,3.2078,2654.5,2654.4,3.2826829]
[1729383260843,3.58453,2654.5,2654.4,3.2826829]
[1729383262243,3.2078,2654.5,2654.4,3.2826829]
[1729383263049,3.2078,2654.5,2654.4,1.80137024]
[1729383263349,3.58453,2654.5,2654.4,1.80137024]
[1729383263846,3.58453,2654.5,2654.4,3.28189816]
[1729383264635,3.58453,2654.5,2654.4,3.28080025]
[1729383265646,3.58453,2654.5,2654.4,1.80027233]
[1729383265839,3.58453,2654.5,2654.4,3.28080025]
[1729383267743,3.58453,2654.5,2654.4,1.80027233]
[1729383268351,3.58453,2654.5,2654.4,0.3897]
[1729383269650,0.37673,2654.5,2654.4,0.3897]
[1729383269851,3.58453,2654.5,2654.4,0.3897]
[1729383270244,0.37673,2654.5,2654.4,0.3897]
[1729383270445,3.58453,2654.5,2654.4,0.3897]
[1729383273557,6.975,2654.5,2654.3,0.0547]
[1729383273747,1.60835,2654.4,2654.3,0.0547]
[1729383275950,5.37555,2654.4,2654.3,0.0547]
[1729383277757,5.62842285,2654.4,2654.3,0.0547]
[1729383280861,8.83622285,2654.4,2654.3,0.0547]
[1729383281565,8.45947285,2654.4,2653.8,0.98685678]
[1729383281772,0.37682,2653.9,2653.8,0.98685678]
[1729383286466,4.3586,2654.0,2653.8,0.98685678]
[1729383286667,4.3586,2654.0,2653.9,0.3896]
[1729383287964,1.1508,2654.0,2653.9,0.3896]
[1729383288164,4.3586,2654.0,2653.9,0.3896]
[1729383288358,3.9818,2654.0,2653.9,0.3896]
[1729383288559,3.9818,2654.0,2653.9,1.37645678]
[1729383288866,3.9818,2654.0,2653.9,1.76375678]
[1729383289264,4.3586,2654.0,2653.9,1.76375678]
[1729383289970,3.9818,2654.0,2653.9,1.76375678]
[1729383290562,4.3586,2654.0,2653.9,1.76375678]
[1729383293268,4.3586,2654.0,2653.9,0.98685678]
[1729383293461,0.37682,2653.9,2653.8,0.98685678]
[1729383293661,0.37682,2653.9,2653.7,1.76925678]
[1729383293662,0.37683,2653.8,2653.7,1.76925678]
[1729383293863,0.37683,2653.8,2653.7,3.1799194]
[1729383294473,0.37683,2653.8,2653.7,3.17985133]
[1729383294671,0.37683,2653.8,2653.7,1.76925678]
[1729383295370,0.37683,2653.8,2653.6,0.417]
[1729383295371,0.37685,2653.7,2653.6,0.98685678]
[1729383295574,0.37686,2653.6,2653.5,0.4292]
[1729383301673,0.78846,2653.6,2653.5,0.4292]
[1729383303374,0.97863546,2653.6,2653.5,0.4292]
[1729383303576,0.37689,2653.4,2653.3,0.8263]
[1729383303776,4.35669,2653.4,2653.3,1.2341]
[1729383305470,1.14889,2653.4,2653.3,1.2341]
[1729383305789,7.7486,2653.4,2653.0,0.98685678]
[1729383306079,0.37692,2653.2,2653.1,0.4078]
[1729383307769,0.37692,2653.2,2653.0,0.4186]
[1729383307770,0.8329,2653.3,2653.0,0.4186]
[1729383307968,3.2078,2653.1,2652.9,0.3868]
[1729383308186,0.37695,2653.0,2652.9,0.3868]
[1729383310574,3.58474,2653.1,2652.9,0.3868]
[1729383310881,0.772,2653.0,2652.9,0.3868]
[1729383311977,3.58474,2653.1,2652.9,0.3868]
[1729383312282,4.35674,2653.1,2652.9,0.3868]
[1729383314981,3.9798,2653.1,2652.9,0.3868]
[1729383315177,3.2078,2653.1,2652.9,0.3868]
[1729383315381,3.9798,2653.1,2652.9,0.3868]
[1729383315678,3.9798,2653.1,2652.9,0.76376]
[1729383315888,3.2078,2653.1,2652.9,0.3868]
[1729383317584,3.2078,2653.0,2652.9,0.3868]
[1729383317779,2.64189388,2653.0,2652.9,0.3868]
[1729383319591,2.64189388,2653.0,2652.9,1.37365678]
[1729383319782,2.64189388,2653.0,2652.9,0.3868]
[1729383319984,2.64189388,2653.0,2652.9,0.76376]
[1729383320184,2.64189388,2653.0,2652.9,0.3868]
[1729383320384,2.64189388,2653.0,2652.9,1.37365678]
[1729383320986,0.37693,2653.1,2652.9,1.37365678]
[1729383321185,3.58473,2653.1,2652.9,1.37365678]
[1729383321485,3.2078,2653.1,2652.9,1.37365678]
[1729383321685,3.2078,2653.1,2653.0,0.4269]
[1729383322892,3.2078,2653.1,2653.0,1.79070678]
[1729383323093,3.2078,2653.1,2653.0,7.46052461]
[1729383323389,0.774,2653.4,2653.0,7.46052461]
[1729383323390,3.9818,2653.4,2653.1,0.37693]
[1729383323594,3.9818,2653.4,2653.2,0.4275]
[1729383323995,0.774,2653.6,2653.3,0.4145]
[1729383324191,0.37688,2653.5,2653.4,0.4289]
[1729383325987,0.37689,2653.4,2653.3,0.4145]
[1729383327095,3.2078,2653.4,2653.2,1.41347398]
[1729383327289,0.8045,2653.3,2653.2,0.4275]
[1729383329989,0.3769,2653.3,2653.2,0.4275]
[1729383333498,0.3769,2653.3,2653.2,1.41347398]
[1729383335204,1.1739,2653.6,2653.2,1.41347398]
[1729383335402,0.37688,2653.5,2653.3,0.98597398]
[1729383335700,0.37688,2653.5,2653.4,0.4059]
[1729383335906,0.37688,2653.5,2653.4,1.81267398]
[1729383336101,1.55077,2653.6,2653.4,1.81267398]
[1729383336610,0.774,2653.6,2653.4,1.81267398]
[1729383336798,1.15087,2653.6,2653.4,1.81267398]
[1729383337309,0.774,2653.6,2653.4,1.81267398]
[1729383337903,1.18212,2653.9,2653.5,1.36284398]
[1729383338102,0.8053,2653.9,2653.6,0.4231]
[1729383338398,1.5793,2653.9,2653.7,0.98597398]
[1729383338698,1.95613,2653.9,2653.7,0.98597398]
[1729383340999,0.37683,2653.8,2653.7,0.98597398]
[1729383344507,0.37683,2653.8,2653.6,1.40907398]
[1729383345007,0.37683,2653.8,2653.7,0.98597398]
[1729383345303,1.5793,2653.9,2653.6,1.40907398]
[1729383345506,1.95613,2653.9,2653.7,0.98597398]
[1729383345800,0.37684,2653.8,2653.6,1.40907398]
[1729383346004,1.5793,2653.9,2653.6,0.4231]
[1729383346198,0.37684,2653.8,2653.6,1.40907398]
[1729383346810,0.37684,2653.8,2653.6,0.4231]
[1729383347006,0.37684,2653.8,2653.6,1.40907398]
[1729383347403,0.37684,2653.8,2653.6,0.4231]
[1729383347806,0.8053,2653.9,2653.6,0.4231]
[1729383347997,1.1892,2653.9,2653.6,1.78592398]
[1729383348408,0.774,2653.9,2653.7,0.37684]
[1729383348603,0.774,2653.9,2653.8,0.4237]
[1729383348809,3.9818,2654.0,2653.8,0.8217]
[1729383349403,3.2078,2654.0,2653.8,0.8217]
[1729383349599,0.772,2654.0,2653.8,0.8217]
[1729383351302,1.14879,2654.1,2653.8,0.8217]
[1729383352117,0.772,2654.1,2653.8,0.8217]
[1729383352308,1.14879,2654.1,2653.8,0.8217]
[1729383357401,0.772,2654.1,2653.8,0.8217]
[1729383357618,0.772,2654.1,2653.7,0.98597398]
[1729383357619,0.37683,2653.8,2653.7,0.98597398]
[1729383357910,0.37683,2653.8,2653.6,0.4231]
[1729383358513,0.37683,2653.8,2653.6,1.40907398]
[1729383359811,0.80135,2653.7,2653.6,1.40907398]
[1729383360112,0.80135,2653.7,2653.6,0.4231]
[1729383360313,0.80135,2653.7,2653.6,1.40907398]
[1729383360906,0.80135,2653.7,2653.6,2.81763588]
[1729383361313,0.80135,2653.7,2653.6,1.40907398]
[1729383363017,0.37686,2653.6,2653.5,0.98597398]
[1729383363317,0.37689,2653.4,2653.3,1.37577398]
[1729383365412,0.79349,2653.4,2653.3,1.37577398]
[1729383365812,0.79349,2653.4,2653.3,0.98597398]
[1729383366018,0.3769,2653.3,2653.2,0.98597398]
[1729383366214,0.37692,2653.2,2653.1,0.98597398]
[1729383366418,0.37692,2653.2,2653.1,1.40919345]
[1729383366605,0.37692,2653.2,2653.1,2.88972137]
[1729383366813,0.37692,2653.2,2653.1,0.98781014]
[1729383367010,0.37693,2653.1,2653.0,1.41081014]
[1729383367813,0.37693,2653.1,2652.9,1.89842792]
[1729383367814,3.6244,2653.4,2652.9,1.40571014]
[1729383368010,0.37695,2653.0,2652.9,1.40571014]
[1729383369321,0.37692,2653.2,2652.9,2.81453818]
[1729383369525,0.37692,2653.2,2653.0,1.38711014]
[1729383370626,0.37693,2653.1,2653.0,1.38711014]
[1729383370815,0.37693,2653.1,2653.0,0.3993]
[1729383371017,1.14893,2653.1,2652.9,1.81461014]
[1729383371216,0.78755,2653.0,2652.9,1.40571014]
[1729383371413,1.21385,2653.0,2652.9,1.40571014]
[1729383371824,1.21385,2653.0,2652.8,0.98781014]
[1729383372130,1.60495,2653.0,2652.8,0.98781014]
[1729383374924,0.772,2653.1,2652.9,0.98781014]
[1729383375227,0.772,2653.1,2653.0,0.4173]
[1729383375418,1.14893,2653.1,2653.0,0.8192]
[1729383376428,0.772,2653.1,2653.0,0.8192]
[1729383376624,0.37691,2653.3,2653.0,0.8192]
[1729383376830,0.772,2653.3,2653.0,2.20241014]
[1729383377032,0.37692,2653.2,2653.0,2.20241014]
[1729383377928,0.772,2653.3,2653.0,2.20241014]
[1729383378226,1.14891,2653.3,2653.0,2.20241014]
[1729383380128,1.15291,2653.3,2653.0,2.20241014]
[1729383381435,1.15291,2653.3,2653.0,1.2146]
[1729383381640,1.15291,2653.3,2653.0,2.20241014]
[1729383382024,0.776,2653.3,2653.0,2.20241014]
[1729383382536,0.776,2653.3,2653.1,0.98781014]
[1729383382739,3.2078,2653.5,2653.1,0.98781014]
[1729383383040,0.776,2653.4,2653.2,0.98781014]
[1729383383531,0.776,2653.4,2653.3,0.4075]
[1729383383833,1.2689,2653.8,2653.3,1.39531014]
[1729383383834,0.37687,2653.6,2653.3,1.39531014]
[1729383384024,0.37687,2653.6,2653.4,0.8211]
[1729383384535,0.776,2653.7,2653.4,0.8211]
[1729383384730,0.37686,2653.6,2653.4,0.8211]
[1729383385530,1.15285,2653.7,2653.4,0.8211]
[1729383387339,0.37686,2653.6,2653.4,0.8211]
[1729383390440,0.776,2653.7,2653.3,1.39531014]
[1729383390733,0.3769,2653.3,2653.2,0.98781014]
[1729383391536,0.37692,2653.2,2653.1,1.38041014]
[1729383391739,0.4139,2653.4,2653.1,2.78824348]
[1729383391937,0.37692,2653.2,2653.1,1.38041014]
[1729383392744,0.37692,2653.2,2653.1,0.3926]
[1729383396340,1.15292,2653.2,2653.1,0.3926]
[1729383399442,1.15292,2653.2,2653.1,1.38041014]
[1729383399839,1.15292,2653.2,2653.1,0.3926]
[1729383400236,1.15292,2653.2,2653.1,1.38041014]
[1729383400633,1.15292,2653.2,2653.1,2.7874949]
[1729383401549,1.15292,2653.2,2653.1,1.79968476]
[1729383401843,1.15292,2653.2,2653.1,2.78721889]
[1729383402033,1.15292,2653.2,2653.1,1.79968476]
[1729383402451,1.15292,2653.2,2653.1,3.28046727]
[1729383407249,1.15292,2653.2,2653.1,3.28130123]
[1729383407443,1.15292,2653.2,2653.1,1.80077331]
[1729383407639,1.15292,2653.2,2653.1,3.28317005]
[1729383407844,1.15292,2653.2,2653.1,3.28319344]
[1729383408853,1.15292,2653.2,2653.1,1.80077331]
[1729383409057,1.15292,2653.2,2653.1,3.28339145]
[1729383409956,1.15292,2653.2,2653.1,1.80077331]
[1729383412154,1.15292,2653.2,2653.1,1.8012011]
[1729383417057,1.15292,2653.2,2653.1,1.8014074]
[1729383419454,1.15292,2653.2,2653.1,3.77706046]
[1729383419658,1.15292,2653.2,2653.1,1.8014074]
[1729383419855,1.15292,2653.2,2653.1,3.77706046]
[1729383420055,1.15292,2653.2,2653.1,1.8014074]
[1729383420252,1.15292,2653.2,2653.1,3.77706046]
[1729383423458,5.33352,2653.2,2653.1,2.89225978]
[1729383423852,5.33352,2653.2,2653.1,2.397841]
[1729383424063,5.33352,2653.2,2653.1,0.9890336]
[1729383424461,5.33352,2653.2,2653.0,0.9890336]
[1729383424462,0.37693,2653.1,2653.0,0.9890336]
[1729383424976,0.37695,2653.0,2652.9,0.9890336]
[1729383425159,4.55525,2653.0,2652.9,0.9890336]
[1729383425361,0.37696,2652.9,2652.8,0.9890336]
[1729383425563,0.7933,2652.9,2652.8,0.9890336]
[1729383425768,0.7933,2652.9,2652.7,0.9890336]
[1729383425769,0.37697,2652.8,2652.7,0.9890336]
[1729383425960,0.37697,2652.8,2652.7,2.39922865]
[1729383426162,0.37697,2652.8,2652.7,2.3989873]
[1729383426366,0.37697,2652.8,2652.7,0.98879225]
[1729383426671,0.37697,2652.8,2652.7,1.40983427]
[1729383426868,0.7933,2652.9,2652.7,0.98854714]
[1729383427076,0.37697,2652.8,2652.7,0.98854714]
[1729383428363,0.7933,2652.9,2652.6,0.98854714]
[1729383428364,0.37699,2652.7,2652.6,0.98854714]
[1729383428565,1.14899,2652.7,2652.6,2.39738549]
[1729383429569,1.14899,2652.7,2652.6,0.98813579]
[1729383433970,1.14899,2652.7,2652.5,1.79093579]
[1729383434271,1.14899,2652.7,2652.6,0.98813579]
[1729383434572,1.14899,2652.7,2652.5,1.79093579]
[1729383434573,0.772,2652.7,2652.5,1.79093579]
[1729383434872,1.149,2652.7,2652.6,0.98813579]
[1729383435266,1.149,2652.7,2652.5,1.79093579]
[1729383435461,1.149,2652.7,2652.5,0.98813579]
[1729383435462,0.772,2652.7,2652.5,0.98813579]
[1729383435666,0.377,2652.6,2652.5,0.98813579]
[1729383435968,0.377,2652.6,2652.5,1.39493579]
[1729383440280,0.377,2652.6,2652.5,0.4068]
[1729383440577,0.7854,2652.6,2652.5,0.4068]
[1729383442067,0.4084,2652.6,2652.5,0.4068]
[1729383442268,4.35679,2652.7,2652.5,0.4068]
[1729383443278,4.35679,2652.7,2652.6,0.4203]
[1729383444474,1.14899,2652.7,2652.6,0.4203]
[1729383444675,4.35679,2652.7,2652.6,0.4203]
[1729383445079,4.76389,2652.7,2652.6,0.4203]
[1729383448081,1.55609,2652.7,2652.6,0.4203]
[1729383448273,4.76389,2652.7,2652.6,0.4203]
[1729383451279,1.55609,2652.7,2652.6,0.4203]
[1729383451488,4.76389,2652.7,2652.6,0.4203]
[1729383452284,1.55609,2652.7,2652.6,0.4203]
[1729383452484,4.76389,2652.7,2652.6,0.4203]
[1729383452991,1.55609,2652.7,2652.6,0.4203]
[1729383453182,4.76389,2652.7,2652.6,0.4203]
[1729383454188,1.55609,2652.7,2652.6,0.4203]
[1729383454390,4.76389,2652.7,2652.6,0.4203]
[1729383456788,4.35679,2652.7,2652.6,0.4203]
[1729383463596,1.14899,2652.7,2652.6,0.4203]
[1729383463792,0.772,2652.7,2652.5,1.39493579]
[1729383463991,0.3223,2652.6,2652.5,1.39493579]
[1729383466287,0.3223,2652.6,2652.5,2.80436129]
[1729383466488,0.3223,2652.6,2652.5,1.39493579]
[1729383466691,0.3223,2652.6,2652.5,2.80438586]
[1729383466889,0.3223,2652.6,2652.5,2.80439644]
[1729383467091,3.6193,2653.0,2652.5,2.80440343]
[1729383467295,3.2078,2653.0,2652.7,0.98813579]
[1729383467490,3.2078,2653.0,2652.8,3.69054884]
[1729383467491,1.14896,2652.9,2652.8,3.69054884]
[1729383467890,0.772,2652.9,2652.8,3.69054884]
[1729383468297,1.14896,2652.9,2652.8,3.69054884]
[1729383468593,0.772,2652.9,2652.8,2.20709646]
[1729383468798,0.772,2652.9,2652.8,2.20779789]
[1729383469294,1.14896,2652.9,2652.8,2.20779789]
[1729383469801,0.772,2652.9,2652.8,2.61059789]
[1729383470698,1.14896,2652.9,2652.8,2.61059789]
[1729383472602,1.14896,2652.9,2652.8,4.09396727]
[1729383473090,1.14896,2652.9,2652.8,2.61059789]
[1729383473396,0.772,2652.9,2652.8,4.09387791]
[1729383473592,0.772,2652.9,2652.8,4.09388566]
[1729383474191,1.14896,2652.9,2652.8,4.09388566]
[1729383478405,1.14896,2652.9,2652.8,2.61052297]
[1729383479693,1.14896,2652.9,2652.8,3.59914633]
[1729383479894,0.772,2652.9,2652.7,0.98862336]
[1729383480102,4.41177,2652.8,2652.7,0.98862336]
[1729383480305,0.37699,2652.7,2652.6,0.98862336]
[1729383480805,0.377,2652.6,2652.5,0.98862336]
[1729383483997,0.3223,2652.6,2652.5,0.98862336]
[1729383485302,0.3223,2652.6,2652.4,0.98862336]
[1729383485505,0.3223,2652.6,2652.5,0.98862336]
[1729383486101,0.37702,2652.5,2652.4,0.98862336]
[1729383486412,0.37702,2652.5,2652.4,2.39856862]
[1729383486903,0.37702,2652.5,2652.4,1.40994526]
[1729383487102,0.37702,2652.5,2652.4,2.89323303]
[1729383487810,0.37702,2652.5,2652.4,2.39861899]
[1729383488203,0.37702,2652.5,2652.4,1.40994526]
[1729383488403,0.37702,2652.5,2652.4,2.39862112]
[1729383488604,0.37702,2652.5,2652.4,1.40994526]
[1729383489312,0.37702,2652.5,2652.4,2.39860059]
[1729383489512,0.37702,2652.5,2652.4,1.40994526]
[1729383489712,0.37702,2652.5,2652.4,2.39860181]
[1729383490009,0.37702,2652.5,2652.4,1.40994526]
[1729383490211,0.37702,2652.5,2652.4,2.39859932]
[1729383490406,0.37702,2652.5,2652.4,1.40994526]
[1729383490601,3.2078,2652.7,2652.4,2.89323303]
[1729383490808,4.3578,2652.7,2652.6,0.98860716]
[1729383491009,1.15,2652.7,2652.6,0.98860716]
[1729383491204,1.15,2652.7,2652.6,2.80926474]
[1729383494016,1.15,2652.7,2652.6,2.80923638]
[1729383494218,0.773,2652.7,2652.6,2.80926046]
[1729383494415,0.773,2652.7,2652.6,1.82065758]
[1729383494815,0.773,2652.7,2652.6,2.80923841]
[1729383495116,0.773,2652.7,2652.6,2.80924617]
[1729383495323,0.773,2652.7,2652.6,1.82065758]
[1729383495820,1.14999,2652.7,2652.6,2.80926153]
[1729383498025,1.14999,2652.7,2652.6,1.39940395]
[1729383498226,1.14999,2652.7,2652.6,2.8094096]
[1729383499427,1.14999,2652.7,2652.6,1.39940395]
[1729383499630,1.14999,2652.7,2652.6,2.80943808]
[1729383499826,1.14999,2652.7,2652.6,2.80944043]
[1729383501134,1.14999,2652.7,2652.6,2.80944427]
[1729383501837,4.5426,2652.7,2652.5,0.98860395]
[1729383502035,0.7899,2652.6,2652.5,0.98860395]
[1729383503934,0.7352,2652.6,2652.5,0.98860395]
[1729383510042,0.7352,2652.6,2652.5,2.39855687]
[1729383510443,3.943,2652.6,2652.5,0.98860395]
[1729383512532,0.7352,2652.6,2652.5,0.98860395]
[1729383512744,3.943,2652.6,2652.5,2.39852354]
[1729383513042,3.943,2652.6,2652.5,2.39852287]
[1729383513346,3.943,2652.6,2652.5,0.98860395]
[1729383513544,3.943,2652.6,2652.5,2.39853578]
[1729383513838,0.7352,2652.6,2652.5,2.39853578]
[1729383515143,0.7352,2652.6,2652.5,1.40993183]
[1729383515543,0.7352,2652.6,2652.5,2.39882988]
[1729383515744,0.7352,2652.6,2652.5,1.41008431]
[1729383516144,0.7352,2652.6,2652.5,2.39884395]
[1729383516346,1.5092,2652.6,2652.5,1.41008431]
[1729383517237,1.5092,2652.6,2652.5,2.39889702]
[1729383517439,1.5092,2652.6,2652.5,2.89337208]
[1729383520046,1.151,2652.6,2652.5,2.89337208]
[1729383521750,1.0963,2652.6,2652.5,2.89337208]
[1729383523249,0.774,2652.6,2652.5,2.89337208]
[1729383523551,0.774,2652.6,2652.5,1.41008431]
[1729383524751,1.151,2652.6,2652.5,1.41008431]
[1729383527346,0.774,2652.6,2652.5,1.41008431]
[1729383527744,0.774,2652.6,2652.5,3.38573737]
[1729383528945,1.151,2652.6,2652.5,3.38573737]
[1729383529351,0.774,2652.6,2652.5,3.38573737]
[1729383530048,1.151,2652.6,2652.5,3.38573737]
[1729383530254,1.151,2652.6,2652.5,3.38725701]
[1729383534154,1.151,2652.6,2652.5,1.41160395]
[1729383535760,1.151,2652.6,2652.5,3.38725701]
[1729383535959,1.151,2652.6,2652.5,1.41160395]
[1729383537859,0.774,2652.6,2652.5,3.38725701]
[1729383538366,1.151,2652.6,2652.5,3.38725701]
[1729383538550,1.151,2652.6,2652.5,6.21083417]
[1729383539960,0.7193,2652.6,2652.5,6.21106122]
[1729383540356,3.2078,2652.8,2652.5,6.21106122]
[1729383540559,3.58477,2652.8,2652.6,6.21100221]
[1729383540860,3.2078,2652.8,2652.7,2.22340272]
[1729383541062,3.2078,2652.8,2652.7,2.63540272]
[1729383541273,1.14897,2652.9,2652.7,2.63540272]
[1729383541579,1.14897,2652.9,2652.8,1.41180272]
[1729383541867,0.772,2652.9,2652.8,1.41180272]
[1729383542062,3.2078,2653.1,2652.8,1.41180272]
[1729383542257,0.772,2653.0,2652.9,1.41180272]
[1729383544862,1.14895,2653.0,2652.9,1.41180272]
[1729383545062,1.55305,2653.0,2652.9,0.98935237]
[1729383545365,1.55305,2653.0,2652.8,0.98935237]
[1729383545366,0.37696,2652.9,2652.8,0.98935237]
[1729383545565,1.21296,2652.9,2652.8,0.98935237]
[1729383545761,0.37697,2652.8,2652.7,0.98935237]
[1729383545964,3.58477,2652.8,2652.7,0.98935237]
[1729383546859,3.2078,2652.8,2652.7,0.98935237]
[1729383547173,0.772,2652.8,2652.7,1.40783781]
[1729383547765,0.772,2652.8,2652.7,0.7886]
[1729383547967,0.772,2652.8,2652.7,2.1962958]
[1729383554977,1.14897,2652.8,2652.7,2.1962958]
[1729383556374,1.68897083,2652.8,2652.7,2.1962958]
[1729383557466,1.68897083,2652.8,2652.7,2.19608834]
[1729383557963,0.54000083,2652.8,2652.7,2.19608834]
[1729383558166,1.31200083,2652.9,2652.7,8.3183314]
[1729383558472,0.772,2652.9,2652.8,3.3831414]
[1729383558673,0.772,2652.9,2652.8,6.61725267]
[1729383559175,0.206078,2652.9,2652.8,6.61725267]
[1729383559568,0.151478,2652.9,2652.8,3.8027414]
[1729383560169,0.151478,2652.9,2652.8,6.61216318]
[1729383560578,0.151478,2652.9,2652.8,3.8027414]
[1729383561082,0.151478,2652.9,2652.8,6.61177742]
[1729383562673,0.151478,2652.9,2652.8,3.8027414]
[1729383562876,0.151478,2652.9,2652.8,1.82708834]
[1729383565774,0.37693,2653.1,2652.8,1.82708834]
[1729383565979,0.37693,2653.1,2652.9,1.40748834]
[1729383566173,0.37693,2653.1,2653.0,1.40748834]
[1729383566965,0.37693,2653.1,2652.8,2.39525306]
[1729383567182,0.37693,2653.1,2652.9,1.40408107]
[1729383567374,0.37693,2653.1,2653.0,1.40408107]
[1729383567571,0.37693,2653.1,2653.0,2.39235549]
[1729383569177,0.37693,2653.1,2653.0,2.39227008]
[1729383569569,1.18693,2653.1,2653.0,0.98827442]
[1729383572772,4.39473,2653.1,2653.0,0.98827442]
[1729383575182,0.37695,2653.0,2652.9,0.98827442]
[1729383575379,0.37695,2653.0,2652.9,2.39254194]
[1729383575582,0.37695,2653.0,2652.9,2.39253296]
[1729383575779,0.37695,2653.0,2652.9,0.98840238]
[1729383577387,0.37696,2652.9,2652.8,1.40800238]
[1729383577692,0.76456,2652.9,2652.8,2.81227843]
[1729383578187,0.76456,2652.9,2652.8,1.40800238]
[1729383579080,3.97236,2652.9,2652.8,1.40800238]
[1729383579678,0.76456,2652.9,2652.8,1.40800238]
[1729383581289,1.30445031,2652.9,2652.8,2.81260101]
[1729383581590,1.30445031,2652.9,2652.8,2.81260425]
[1729383581789,0.76456,2652.9,2652.8,2.81260425]
[1729383582082,1.30445031,2652.9,2652.8,2.81260425]
[1729383582491,5.07405031,2652.9,2652.8,0.98840238]
[1729383582679,0.37697,2652.8,2652.7,0.98840238]
[1729383582882,0.53989031,2652.8,2652.7,0.98840238]
[1729383583080,0.37697,2652.8,2652.7,0.98840238]
[1729383583391,0.37699,2652.7,2652.6,0.98840238]
[1729383583588,4.35679,2652.7,2652.6,2.39322912]
[1729383583783,1.68888031,2652.7,2652.6,2.39322912]
[1729383583983,1.14899,2652.7,2652.6,2.39322912]